fUSD/lending_fUSD_20241121
["ID","MTS","AMOUNT","RATE_DAILY","PERIOD"]
[342854229,1732183856524,-2441.25,0.00041095,18]
[342854230,1732183856533,-720.72,0.00041095,18]
[342854231,1732183856542,-500.0,0.00041095,18]
[342854232,1732183856550,-500.0,0.00041095,18]
[342854233,1732183856559,-500.0,0.00041095,18]
[342854234,1732183856568,-500.0,0.00041095,18]
[342854235,1732183856577,-1178.52,0.00041095,18]
[342854236,1732183856587,-850.0,0.00041095,120]
[342854237,1732183856596,-500.0,0.00041095,18]
[342854238,1732183856606,-565.6,0.00041095,18]
[342854239,1732183856615,-500.0,0.00041095,18]
[342854240,1732183856625,-500.0,0.00041095,18]
[342854241,1732183856634,-1395.01,0.00041095,18]
[342854242,1732183856643,-774.51,0.00041095,18]
[342854243,1732183856655,-500.0,0.00041095,18]
[342854244,1732183856663,-850.74,0.00041095,18]
[342854245,1732183856673,-500.0,0.00041095,18]
[342854246,1732183856684,-1879.29,0.00041095,18]
[342854247,1732183856693,-500.0,0.00041095,18]
[342854248,1732183856702,-510.71811103,0.00041095,18]
[342854249,1732183856711,-500.0,0.00041095,18]
[342854250,1732183856720,-500.0,0.00041095,18]
[342854251,1732183856729,-500.0,0.00041095,18]
[342854252,1732183856739,-500.0,0.00041095,18]
[342854253,1732183856748,-2512.49,0.00041095,18]
[342854254,1732183856757,-500.0,0.00041095,18]
[342854255,1732183856766,-500.0,0.00041095,18]
[342854256,1732183856775,-500.0,0.00041095,18]
[342854257,1732183856784,-500.0,0.00041095,18]
[342854258,1732183856794,-500.0,0.00041095,120]
[342854259,1732183856803,-2605.53,0.00041095,18]
[342854260,1732183856812,-500.0,0.00041095,18]
[342854261,1732183856821,-596.7185499,0.00041095,18]
[342854262,1732183856831,-500.0,0.00041095,18]
[342854263,1732183856840,-500.0,0.00041095,18]
[342854264,1732183856850,-500.0,0.00041095,18]
[342854265,1732183856859,-500.0,0.00041095,18]
[342854266,1732183856868,-1872.94,0.00041095,18]
[342854267,1732183856878,-1925.02,0.00041095,18]
[342854268,1732183856888,-500.0,0.00041095,18]
[342854269,1732183856898,-3396.94,0.00041095,18]
[342854270,1732183856907,-500.0,0.00041095,18]
[342854271,1732183856917,-500.0,0.00041095,18]
[342854272,1732183856929,-1210.1,0.00041095,18]
[342854273,1732183856939,-1024.49,0.00041095,18]
[342854274,1732183856948,-985.51,0.00041095,18]
[342854275,1732183856959,-846.5,0.00041095,18]
[342854276,1732183856969,-500.0,0.00041095,18]
[342854277,1732183856979,-907.38,0.00041095,18]
[342854278,1732183856988,-316.72998454,0.00041095,18]
[342854279,1732183856997,-500.0,0.00041095,18]
[342854280,1732183857007,-5916.38,0.00041095,18]
[342854281,1732183857017,-500.0,0.00041095,18]
[342854282,1732183857027,-500.0,0.00041095,18]
[342854283,1732183857036,-500.0,0.00041095,18]
[342854284,1732183857045,-2730.89,0.00041095,18]
[342854285,1732183857054,-500.0,0.00041095,18]
[342854286,1732183857064,-500.0,0.00041095,18]
[342854287,1732183857075,-836.83,0.00041095,18]
[342854288,1732183857086,-653.63,0.00041095,18]
[342854289,1732183857095,-2362.65,0.00041095,18]
[342854290,1732183857105,-500.0,0.00041095,18]
[342854291,1732183857114,-500.0,0.00041095,18]
[342854292,1732183857125,-500.0,0.00041095,18]
[342854293,1732183857134,-500.0,0.00041095,18]
[342854294,1732183857144,-500.0,0.00041095,18]
[342854295,1732183857155,-3060.14,0.00041095,18]
[342854296,1732183857165,-500.0,0.00041095,18]
[342854297,1732183857177,-500.0,0.00041095,18]
[342854298,1732183857186,-2725.84,0.00041095,18]
[342854299,1732183857195,-674.93,0.00041095,18]
[342854300,1732183857204,-500.0,0.00041095,18]
[342854301,1732183857214,-879.77,0.00041095,18]
[342854302,1732183857223,-1226.94,0.00041095,18]
[342854303,1732183857233,-604.0,0.00041095,18]
[342854304,1732183857242,-7340.61,0.00041095,18]
[342854305,1732183857251,-3551.54,0.00041095,18]
[342854306,1732183857261,-500.0,0.00041095,18]
[342854307,1732183857270,-1312.76,0.00041095,18]
[342854308,1732183857280,-1838.37,0.00041095,18]
[342854309,1732183857290,-626.08118514,0.00041095,18]
[342854310,1732183857299,-500.0,0.00041095,18]
[342854311,1732183857308,-500.0,0.00041095,18]
[342854312,1732183857317,-151.0,0.00041095,14]
[342854313,1732183857327,-500.0,0.00041095,18]
[342854314,1732183857336,-514.01568177,0.00041095,18]
[342854315,1732183857345,-1597.79,0.00041095,18]
[342854316,1732183857355,-151.0,0.00041095,14]
[342854317,1732183857365,-500.0,0.00041095,18]
[342854318,1732183857374,-672.44,0.00041095,18]
[342854319,1732183857383,-151.0,0.00041095,14]
[342854320,1732183857392,-745.05,0.00041095,18]
[342854321,1732183857402,-528.54088951,0.00041095,18]
[342854322,1732183857411,-556.45,0.00041095,18]
[342854323,1732183857420,-151.0,0.00041095,14]
[342854324,1732183857430,-151.0,0.00041095,14]
[342854325,1732183857440,-365.251231,0.00041095,14]
[342854326,1732183857449,-151.0,0.00041095,14]
[342854327,1732183857458,-365.251231,0.00041095,14]
[342854328,1732183857468,-296.074881,0.00041095,14]
[342854329,1732183857477,-365.251231,0.00041095,14]
[342854330,1732183857487,-365.251231,0.00041095,14]
[342854331,1732183857497,-500.0,0.00041095,5]
[342854332,1732183857506,-500.0,0.00041095,18]
[342854333,1732183857515,-1783.67,0.00041095,18]
[342854334,1732183857525,-693.06,0.00041095,18]
[342854335,1732183857534,-500.0,0.00041095,18]
[342854336,1732183857543,-500.0,0.00041095,18]
[342854337,1732183857552,-18159.56,0.00041095,18]
[342854338,1732183857561,-365.251231,0.00041095,14]
[342854339,1732183857570,-365.251231,0.00041095,14]
[342854340,1732183857579,-365.251231,0.00041095,14]
[342854341,1732183857589,-365.251231,0.00041095,14]
[342854342,1732183857598,-500.0,0.00041095,18]
[342854343,1732183857607,-772.8,0.00041095,18]
[342854344,1732183857616,-500.0,0.00041095,18]
[342854345,1732183857626,-5132.16,0.00041095,18]
[342854346,1732183857635,-824.17,0.00041095,18]
[342854347,1732183857644,-3602.58,0.00041095,18]
[342854348,1732183857654,-1834.66,0.00041095,18]
[342854349,1732183857663,-500.0,0.00041095,18]
[342854350,1732183857672,-500.0,0.00041095,18]
[342854351,1732183857683,-1435.05,0.00041095,18]
[342854352,1732183857692,-1808.5,0.00041095,18]
[342854353,1732183857701,-527.79,0.00041095,18]
[342854354,1732183857711,-53501.0,0.00041095,18]
[342854355,1732183857719,-500.0,0.00041095,18]
[342854356,1732183857729,-500.0,0.00041095,18]
[342854357,1732183857738,-830.04,0.00041095,18]
[342854358,1732183857747,-500.0,0.00041095,18]
[342854359,1732183857756,-500.0,0.00041095,18]
[342854360,1732183857766,-1345.52,0.00041095,18]
[342854361,1732183857775,-500.29300005,0.00041095,18]
[342854362,1732183857784,-500.0,0.00041095,18]
[342854363,1732183857793,-383.73,0.00041095,7]
[342854364,1732183857802,-1624.09,0.00041095,18]
[342854365,1732183857812,-5278.09,0.00041095,18]
[342854366,1732183857822,-151.0,0.00041095,14]
[342854367,1732183857832,-500.0,0.00041095,18]
[342854368,1732183857842,-667.79,0.00041095,18]
[342854369,1732183857852,-151.0,0.00041095,14]
[342854370,1732183857862,-5616.48,0.00041095,18]
[342854371,1732183857871,-200.0,0.00041095,10]
[342854372,1732183857881,-151.0,0.00041095,14]
[342854373,1732183857891,-500.0,0.00041095,18]
[342854374,1732183857901,-500.0,0.00041095,18]
[342854375,1732183857912,-2503.17,0.00041095,18]
[342854376,1732183857921,-151.0,0.00041095,14]
[342854377,1732183857932,-500.0,0.00041095,18]
[342854378,1732183857942,-500.0,0.00041095,18]
[342854379,1732183857951,-2334.38,0.00041095,18]
[342854380,1732183857960,-584.84,0.00041095,18]
[342854381,1732183857970,-1766.09,0.00041095,18]
[342854382,1732183857979,-500.0,0.00041095,18]
[342854383,1732183857989,-500.0,0.00041095,18]
[342854384,1732183857999,-955.12,0.00041095,18]
[342854385,1732183858008,-504.28447762,0.00041095,3]
[342854386,1732183858017,-615.61,0.00041095,18]
[342854387,1732183858027,-1593.34,0.00041095,18]
[342854388,1732183858036,-500.0,0.00041095,18]
[342854389,1732183858045,-564.75,0.00041095,18]
[342854390,1732183858054,-500.0,0.00041095,18]
[342854391,1732183858063,-1174.64,0.00041095,18]
[342854392,1732183858073,-500.0,0.00041095,18]
[342854393,1732183858083,-1814.9,0.00041095,18]
[342854394,1732183858092,-500.0,0.00041095,18]
[342854395,1732183858101,-524.60302293,0.00041095,18]
[342854396,1732183858109,-500.0,0.00041095,18]
[342854397,1732183858119,-517.4,0.00041095,18]
[342854398,1732183858127,-365.65,0.00041095,18]
[342854399,1732183858136,-500.0,0.00041095,18]
[342854400,1732183858145,-3206.46,0.00041095,18]
[342854401,1732183858157,-576.78659281,0.00041095,18]
[342854402,1732183858167,-2593.36,0.00041095,18]
[342854403,1732183858177,-500.0,0.00041095,18]
[342854404,1732183858186,-500.0,0.00041095,18]
[342854405,1732183858195,-178.3239272,0.00041095,18]
[342854406,1732183858205,-1431.54,0.00041095,18]
[342854407,1732183858214,-500.0,0.00041095,18]
[342854408,1732183858223,-740.88,0.00041095,18]
[342854409,1732183858232,-854.91,0.00041095,18]
[342854410,1732183858242,-500.0,0.00041095,18]
[342854411,1732183858251,-1940.35,0.00041095,18]
[342854412,1732183858261,-1039.35,0.00041095,18]
[342854413,1732183858271,-689.83,0.00041095,18]
[342854414,1732183858281,-500.0,0.00041095,18]
[342854415,1732183858290,-543.98714385,0.00041095,18]
[342854416,1732183858300,-500.0,0.00041095,18]
[342854417,1732183858310,-151.0,0.00041095,14]
[342854418,1732183858319,-635.02,0.00041095,18]
[342854419,1732183858328,-835.87,0.00041095,18]
[342854420,1732183858339,-613.21,0.00041095,18]
[342854421,1732183858348,-2405.68,0.00041095,18]
[342854422,1732183858358,-1079.99,0.00041095,18]
[342854423,1732183858367,-500.0,0.00041095,18]
[342854424,1732183858376,-2654.99,0.00041095,18]
[342854425,1732183858385,-500.0,0.00041095,18]
[342854426,1732183858394,-893.7,0.00041095,18]
[342854427,1732183858404,-2387.22,0.00041095,18]
[342854428,1732183858414,-712.87,0.00041095,18]
[342854429,1732183858423,-2140.66,0.00041095,18]
[342854430,1732183858436,-754.52,0.00041095,18]
[342854431,1732183858446,-995.2,0.00041095,18]
[342854432,1732183858455,-500.0,0.00041095,18]
[342854433,1732183858465,-1053.18,0.00041095,18]
[342854434,1732183858475,-500.0,0.00041095,18]
[342854435,1732183858484,-500.0,0.00041095,18]
[342854436,1732183858493,-1760.64,0.00041095,18]
[342854437,1732183858502,-10720.5,0.00041095,18]
[342854438,1732183858511,-701.86,0.00041095,18]
[342854439,1732183858521,-500.0,0.00041095,18]
[342854440,1732183858530,-3888.22,0.00041095,18]
[342854441,1732183858539,-1053.12,0.00041095,18]
[342854442,1732183858549,-1368.87,0.00041095,18]
[342854443,1732183858559,-764.59,0.00041095,18]
[342854444,1732183858569,-500.0,0.00041095,18]
[342854445,1732183858578,-2757.84,0.00041095,18]
[342854446,1732183858588,-500.0,0.00041095,18]
[342854447,1732183858597,-500.0,0.00041095,18]
[342854448,1732183858606,-500.0,0.00041095,18]
[342854449,1732183858616,-1370.3,0.00041095,18]
[342854450,1732183858626,-782.15,0.00041095,18]
[342854451,1732183858637,-1844.45,0.00041095,18]
[342854452,1732183858646,-500.0,0.00041095,18]
[342854453,1732183858656,-1254.36,0.00041095,18]
[342854454,1732183858666,-500.0,0.00041095,18]
[342854455,1732183858677,-500.0,0.00041095,18]
[342854456,1732183858687,-2000.0,0.00041095,30]
[342854457,1732183858695,-721.42,0.00041095,18]
[342854458,1732183858705,-1994.66,0.00041095,18]
[342854459,1732183858714,-500.0,0.00041095,18]
[342854460,1732183858724,-500.0,0.00041095,18]
[342854461,1732183858734,-753.09,0.00041095,18]
[342854462,1732183858743,-500.0,0.00041095,18]
[342854463,1732183858753,-549.97,0.00041095,18]
[342854464,1732183858763,-2822.89,0.00041095,18]
[342854465,1732183858773,-1199.48,0.00041095,18]
[342854466,1732183858784,-1675.29,0.00041095,18]
[342854467,1732183858793,-500.0,0.00041095,18]
[342854468,1732183858803,-1861.07,0.00041095,120]
[342854469,1732183858814,-2359.4,0.00041095,18]
[342854470,1732183858823,-4091.97,0.00041095,18]
[342854471,1732183858833,-786.7,0.00041095,18]
[342854472,1732183858843,-2311.43,0.00041095,18]
[342854473,1732183858853,-1154.81,0.00041095,18]
[342854474,1732183858863,-932.22,0.00041095,18]
[342854475,1732183858873,-1042.7,0.00041095,18]
[342854476,1732183858883,-500.0,0.00041095,18]
[342854477,1732183858893,-500.0,0.00041095,18]
[342854478,1732183858903,-3284.84,0.00041095,18]
[342854479,1732183858914,-500.0,0.00041095,18]
[342854480,1732183858924,-500.0,0.00041095,18]
[342854481,1732183858935,-500.0,0.00041095,18]
[342854482,1732183858945,-500.0,0.00041095,18]
[342854483,1732183858955,-959.13,0.00041095,18]
[342854484,1732183858964,-500.0,0.00041095,18]
[342854485,1732183858974,-500.0,0.00041095,18]
[342854486,1732183858984,-153.777618,0.00041095,14]
[342854487,1732183858994,-153.777618,0.00041095,14]
[342854488,1732183859004,-153.777618,0.00041095,14]
[342854489,1732183859014,-1921.19,0.00041095,18]
[342854490,1732183859024,-153.777618,0.00041095,14]
[342854491,1732183859168,-1699.06,0.00041095,18]
[342854492,1732183859178,-1222.68,0.00041095,18]
[342854493,1732183859188,-1170.05,0.00041095,18]
[342854494,1732183859198,-500.0,0.00041095,18]
[342854495,1732183859208,-500.0,0.00041095,18]
[342854496,1732183859218,-151.0,0.00041095,14]
[342854497,1732183859227,-151.0,0.00041095,14]
[342854498,1732183859236,-553.23,0.00041095,18]
[342854499,1732183859245,-151.0,0.00041095,14]
[342854500,1732183859254,-1222.84,0.00041095,18]
[342854501,1732183859264,-151.0,0.00041095,14]
[342854502,1732183859274,-500.0,0.00041095,18]
[342854503,1732183859283,-6234.42,0.00041095,18]
[342854504,1732183859292,-500.0,0.00041095,18]
[342854505,1732183859302,-153.777618,0.00041095,14]
[342854506,1732183859312,-153.777618,0.00041095,14]
[342854507,1732183859323,-153.777618,0.00041095,14]
[342854508,1732183859335,-500.0,0.00041095,18]
[342854509,1732183859344,-153.777618,0.00041095,14]
[342854510,1732183859353,-500.0,0.00041095,18]
[342854511,1732183859363,-151.0,0.00041095,14]
[342854512,1732183859372,-897.67,0.00041095,18]
[342854513,1732183859381,-500.0,0.00041095,18]
[342854514,1732183859391,-151.0,0.00041095,14]
[342854515,1732183859401,-1242.44,0.00041095,18]
[342854516,1732183859411,-466.50567028,0.00041095,18]
[342854517,1732183859421,-151.233282,0.00041095,14]
[342854518,1732183859432,-1783.73,0.00041095,18]
[342854519,1732183859443,-500.0,0.00041095,18]
[342854520,1732183859453,-1648.28,0.00041095,18]
[342854521,1732183859463,-500.0,0.00041095,18]
[342854522,1732183859474,-500.0,0.00041095,18]
[342854523,1732183859484,-500.0,0.00041095,18]
[342854524,1732183859494,-632.08,0.00041095,18]
[342854525,1732183859503,-992.42,0.00041095,18]
[342854526,1732183859513,-1659.52,0.00041095,18]
[342854527,1732183859522,-500.0,0.00041095,18]
[342854528,1732183859533,-1737.44,0.00041095,18]
[342854529,1732183859542,-151.0,0.00041095,14]
[342854530,1732183859552,-2565.1,0.00041095,18]
[342854531,1732183859562,-151.0,0.00041095,14]
[342854532,1732183859572,-151.0,0.00041095,14]
[342854533,1732183859581,-500.0,0.00041095,18]
[342854534,1732183859591,-500.0,0.00041095,18]
[342854535,1732183859600,-500.0,0.00041095,18]
[342854536,1732183859609,-500.0,0.00041095,18]
[342854537,1732183859619,-1287.49,0.00041095,18]
[342854538,1732183859629,-500.0,0.00041095,18]
[342854539,1732183859638,-739.89,0.00041095,18]
[342854540,1732183859648,-4589.02,0.00041095,18]
[342854541,1732183859658,-5288.31,0.00041095,18]
[342854542,1732183859667,-2148.48,0.00041095,18]
[342854543,1732183859678,-2264.23,0.00041095,18]
[342854544,1732183859687,-2048.94,0.00041095,18]
[342854545,1732183859696,-500.0,0.00041095,18]
[342854546,1732183859706,-500.0,0.00041095,18]
[342854547,1732183859715,-500.0,0.00041095,18]
[342854548,1732183859725,-4226.5,0.00041095,18]
[342854549,1732183859735,-1803.45,0.00041095,18]
[342854550,1732183859744,-799.38,0.00041095,18]
[342854551,1732183859754,-948.25,0.00041095,18]
[342854552,1732183859764,-1317.77,0.00041095,18]
[342854553,1732183859774,-500.0,0.00041095,18]
[342854554,1732183859784,-500.0,0.00041095,18]
[342854555,1732183859793,-500.0,0.00041095,18]
[342854556,1732183859804,-500.0,0.00041095,18]
[342854557,1732183859814,-500.0,0.00041095,18]
[342854558,1732183859824,-500.0,0.00041095,18]
[342854559,1732183859834,-834.48,0.00041095,18]
[342854560,1732183859844,-2127.63,0.00041095,18]
[342854561,1732183859854,-500.0,0.00041095,18]
[342854562,1732183859864,-500.0,0.00041095,18]
[342854563,1732183859874,-1567.59,0.00041095,18]
[342854564,1732183859883,-592.02730042,0.00041095,18]
[342854565,1732183859893,-500.0,0.00041095,18]
[342854566,1732183859903,-500.0,0.00041095,18]
[342854567,1732183859914,-1042.89,0.00041095,18]
[342854568,1732183859924,-500.0,0.00041095,18]
[342854569,1732183859935,-500.0,0.00041095,18]
[342854570,1732183859945,-582.56,0.00041095,18]
[342854571,1732183859955,-500.0,0.00041095,18]
[342854572,1732183859965,-1444.72,0.00041095,18]
[342854573,1732183859976,-6701.81,0.00041095,18]
[342854574,1732183859987,-1314.85,0.00041095,18]
[342854575,1732183859997,-1886.47,0.00041095,18]
[342854576,1732183860007,-500.0,0.00041095,18]
[342854577,1732183860016,-2120.02,0.00041095,18]
[342854578,1732183860026,-1291.91,0.00041095,18]
[342854579,1732183860036,-1967.17,0.00041095,18]
[342854580,1732183860045,-500.0,0.00041095,18]
[342854581,1732183860055,-500.0,0.00041095,18]
[342854582,1732183860065,-500.0,0.00041095,18]
[342854583,1732183860077,-4029.65,0.00041095,18]
[342854584,1732183860088,-1921.406537,0.00041095,14]
[342854585,1732183860098,-151.0,0.00041095,14]
[342854586,1732183860107,-151.0,0.00041095,14]
[342854587,1732183860116,-1921.406537,0.00041095,14]
[342854588,1732183860126,-1455.7,0.00041095,18]
[342854589,1732183860135,-1921.406537,0.00041095,14]
[342854590,1732183860146,-1921.406537,0.00041095,14]
[342854591,1732183860158,-508.35,0.00041095,18]
[342854592,1732183860167,-500.0,0.00041095,18]
[342854593,1732183860178,-6866.89,0.00041095,18]
[342854594,1732183860187,-500.0,0.00041095,18]
[342854595,1732183860197,-1921.406537,0.00041095,14]
[342854596,1732183860207,-1921.406537,0.00041095,14]
[342854597,1732183860216,-151.0,0.00041095,14]
[342854598,1732183860225,-1921.406537,0.00041095,14]
[342854599,1732183860235,-151.0,0.00041095,14]
[342854600,1732183860246,-500.0,0.00041095,18]
[342854601,1732183860256,-1921.406537,0.00041095,14]
[342854602,1732183860265,-202.532485,0.00041095,14]
[342854603,1732183860275,-822.14,0.00041095,18]
[342854604,1732183860284,-500.0,0.00041095,18]
[342854605,1732183860294,-1365.5,0.00041095,18]
[342854606,1732183860303,-500.0,0.00041095,18]
[342854607,1732183860313,-1460.64,0.00041095,18]
[342854608,1732183860322,-500.0,0.00041095,18]
[342854609,1732183860332,-2457.99,0.00041095,18]
[342854610,1732183860342,-500.0,0.00041095,18]
[342854611,1732183860352,-500.0,0.00041095,18]
[342854612,1732183860361,-628.01,0.00041095,18]
[342854613,1732183860371,-4785.98,0.00041095,18]
[342854614,1732183860380,-4630.84,0.00041095,18]
[342854615,1732183860390,-666.53,0.00041095,18]
[342854616,1732183860399,-500.0,0.00041095,18]
[342854617,1732183860409,-500.0,0.00041095,18]
[342854618,1732183860419,-4177.36,0.00041095,18]
[342854619,1732183860428,-1478.15,0.00041095,18]
[342854620,1732183860438,-874.46,0.00041095,18]
[342854621,1732183860448,-832.36,0.00041095,18]
[342854622,1732183860458,-500.0,0.00041095,18]
[342854623,1732183860467,-7477.37,0.00041095,18]
[342854624,1732183860477,-500.0,0.00041095,18]
[342854625,1732183860487,-279.43823062,0.00041095,18]
[342854626,1732183860496,-3532.36,0.00041095,18]
[342854627,1732183860505,-5754.46,0.00041095,18]
[342854628,1732183860515,-538.12103304,0.00041095,18]
[342854629,1732183860524,-500.0,0.00041095,18]
[342854630,1732183860533,-500.0,0.00041095,18]
[342854631,1732183860543,-500.0,0.00041095,18]
[342854632,1732183860552,-500.0,0.00041095,18]
[342854633,1732183860562,-1013.68,0.00041095,18]
[342854634,1732183860571,-1551.56,0.00041095,18]
[342854635,1732183860581,-2753.45,0.00041095,18]
[342854636,1732183860590,-500.0,0.00041095,18]
[342854637,1732183860600,-500.0,0.00041095,18]
[342854638,1732183860609,-500.0,0.00041095,18]
[342854639,1732183860619,-500.0,0.00041095,18]
[342854640,1732183860628,-500.0,0.00041095,18]
[342854641,1732183860638,-508.65,0.00041095,18]
[342854642,1732183860647,-696.91,0.00041095,18]
[342854643,1732183860656,-2037.35,0.00041095,18]
[342854644,1732183860666,-1150.27,0.00041095,18]
[342854645,1732183860676,-661.12,0.00041095,18]
[342854646,1732183860688,-598.95,0.00041095,18]
[342854647,1732183860697,-1925.82,0.00041095,18]
[342854648,1732183860707,-500.0,0.00041095,18]
[342854649,1732183860716,-576.14,0.00041095,18]
[342854650,1732183860726,-2630.54,0.00041095,18]
[342854651,1732183860735,-2376.34,0.00041095,18]
[342854652,1732183860745,-604.33,0.00041095,18]
[342854653,1732183860754,-500.0,0.00041095,18]
[342854654,1732183860765,-967.52,0.00041095,18]
[342854655,1732183860774,-500.0,0.00041095,18]
[342854656,1732183860784,-500.0,0.00041095,18]
[342854657,1732183860793,-1840.77,0.00041095,18]
[342854658,1732183860803,-750.78,0.00041095,18]
[342854659,1732183860812,-500.0,0.00041095,18]
[342854660,1732183860822,-750.78,0.00041095,18]
[342854661,1732183860833,-750.78,0.00041095,18]
[342854662,1732183860843,-750.78,0.00041095,18]
[342854663,1732183860853,-4217.08,0.00041095,18]
[342854664,1732183860862,-750.78,0.00041095,18]
[342854665,1732183860872,-750.78,0.00041095,18]
[342854666,1732183860881,-750.78,0.00041095,18]
[342854667,1732183860891,-750.78,0.00041095,18]
[342854668,1732183860900,-750.78,0.00041095,18]
[342854669,1732183860910,-750.78,0.00041095,18]
[342854670,1732183860919,-1399.32,0.00041095,18]
[342854671,1732183860930,-750.78,0.00041095,18]
[342854672,1732183860939,-5422.34,0.00041095,18]
[342854673,1732183860948,-750.78,0.00041095,18]
[342854674,1732183860958,-750.78,0.00041095,18]
[342854675,1732183860968,-750.78,0.00041095,18]
[342854676,1732183860977,-500.0,0.00041095,18]
[342854677,1732183860986,-500.0,0.00041095,18]
[342854678,1732183860996,-750.78,0.00041095,18]
[342854679,1732183861005,-750.78,0.00041095,18]
[342854680,1732183861015,-1690.4,0.00041095,18]
[342854681,1732183861024,-750.78,0.00041095,18]
[342854682,1732183861034,-750.78,0.00041095,18]
[342854683,1732183861043,-750.78,0.00041095,18]
[342854684,1732183861052,-750.78,0.00041095,18]
[342854685,1732183861061,-602.47,0.00041095,18]
[342854686,1732183861070,-500.0,0.00041095,18]
[342854687,1732183861080,-500.0,0.00041095,18]
[342854688,1732183861093,-750.78,0.00041095,18]
[342854689,1732183861102,-750.78,0.00041095,18]
[342854690,1732183861112,-500.0,0.00041095,18]
[342854691,1732183861122,-750.78,0.00041095,18]
[342854692,1732183861132,-550.88,0.00041095,18]
[342854693,1732183861141,-750.99656014,0.00041095,18]
[342854694,1732183861152,-500.0,0.00041095,18]
[342854695,1732183861161,-1844.11,0.00041095,18]
[342854696,1732183861171,-500.0,0.00041095,18]
[342854697,1732183861184,-1034.6,0.00041095,18]
[342854698,1732183861193,-2534.5,0.00041095,18]
[342854699,1732183861203,-515.76,0.00041095,18]
[342854700,1732183861212,-500.0,0.00041095,18]
[342854701,1732183861222,-500.0,0.00041095,18]
[342854702,1732183861232,-513.84561584,0.00041095,18]
[342854703,1732183861242,-500.0,0.00041095,18]
[342854704,1732183861252,-500.0,0.00041095,18]
[342854705,1732183861261,-4211.02,0.00041095,18]
[342854706,1732183861271,-1213.34,0.00041095,18]
[342854707,1732183861281,-1351.12,0.00041095,18]
[342854708,1732183861290,-858.75,0.00041095,18]
[342854709,1732183861635,-500.0,0.00041095,18]
[342854710,1732183861645,-1932.79,0.00041095,18]
[342854711,1732183861654,-1479.36,0.00041095,18]
[342854712,1732183861664,-2239.25,0.00041095,18]
[342854713,1732183861673,-500.0,0.00041095,18]
[342854714,1732183861685,-500.0,0.00041095,18]
[342854715,1732183861695,-500.0,0.00041095,18]
[342854716,1732183861705,-723.3,0.00041095,18]
[342854717,1732183861714,-500.0,0.00041095,18]
[342854718,1732183861724,-3674.78,0.00041095,18]
[342854719,1732183861734,-500.0,0.00041095,18]
[342854720,1732183861743,-500.0,0.00041095,18]
[342854721,1732183861754,-8572.18,0.00041095,18]
[342854722,1732183861763,-2169.3,0.00041095,18]
[342854723,1732183861773,-854.43,0.00041095,18]
[342854724,1732183861783,-1168.41,0.00041095,18]
[342854725,1732183861793,-500.0,0.00041095,18]
[342854726,1732183861803,-500.0,0.00041095,18]
[342854727,1732183861812,-500.0,0.00041095,18]
[342854728,1732183861821,-500.0,0.00041095,18]